Cogmind - Beta 13 *** ADVENTURER MODE // 2024.07.30 @ 23:33:49 Player: seifer8ff Result: Destroyed by G-34 Mercenary with Small Laser Performance ------------- Evolutions (1) 500 Regions Visited (3) 600 Robots Destroyed (33) 165 Value Destroyed (724) 724 Prototype IDs (1) 20 Alien Tech Used (0) 0 Bonus (11) 11 TOTAL SCORE: 2020 Bonus ------- High Alert Combat Kills 11 Cogmind --------- Core Integrity 0/400 Matter 191/300 Energy 92/100 System Corruption 5% Temperature Cool (6) Movement Core (150) Ox2 Location -9/Storage Parts ------- > --- POWER (1) -------- (None) > --- PROPULSION (3) --- (None) > --- UTILITY (3) ------ Small Storage Unit Sensor Array > --- WEAPON (2) ------- Medium Laser > --- INVENTORY (8) ---- (None) Peak State ------------ > --- POWER ------------ Ion Engine > --- PROPULSION ------- Aluminum Leg Aluminum Leg Aluminum Leg > --- UTILITY ---------- Small Storage Unit Sensor Array Signal Interpreter > --- WEAPON ----------- Advanced Beam Cannon Improved Light Cannon > --- INVENTORY -------- Light Ion Engine Light Ion Engine Small Matter Pod Sensor Array Medium Laser Assault Rifle Improved Light Cannon Improved Light Cannon [Rating: 13] Favorites ----------- Power Ion Engine Engine Ion Engine Power Core Light Nuclear Core Propulsion Aluminum Leg Leg Aluminum Leg Utility Small Storage Unit Device Sensor Array Storage Small Storage Unit Processor Signal Interpreter Protection Light Armor Plating Weapon Improved Light Cannon Energy Gun Medium Laser Energy Cannon Particle Cannon Ballistic Gun Assault Rifle Ballistic Cannon Improved Light Cannon Build | -11 -10 -9 -9 ------- Run | Yrd Mat Mat Sto Slots Evolved 2 | . . 2 . Power . | . . . . Propulsion 1 | . . 1 . Utility 1 | . . 1 . Weapon . | . . . . Parts Attached 51 | 7 7 27 10 Power 8 | 1 1 4 2 Engine 7 | 1 1 4 1 Core 1 | . . . 1 Reactor . | . . . . Propulsion 13 | 2 2 8 1 Treads . | . . . . Leg 13 | 2 2 8 1 Wheel . | . . . . Hover . | . . . . Flight . | . . . . Utility 11 | 2 1 5 3 Device 4 | . 1 2 1 Storage 3 | 2 . . 1 Processor 1 | . . 1 . Hackware . | . . . . Protection 3 | . . 2 1 Artifact . | . . . . Weapon 19 | 2 3 10 4 Energy Gun 6 | 1 1 2 2 Energy Cannon 2 | . . 1 1 Ballistic Gun 4 | 1 1 1 1 Ballistic Cannon 7 | . 1 6 . Launcher . | . . . . Special Weapon . | . . . . Impact Weapon . | . . . . Slashing Weapon . | . . . . Piercing Weapon . | . . . . Special Melee Weapon . | . . . . Unidentified Prototypes 1 | . . 1 . Parts Lost 14 | . 2 . 12 Power 3 | . . . 3 Propulsion 4 | . 1 . 3 Utility 2 | . . . 2 Weapon 5 | . 1 . 4 Highest Loss Streak 12 | . 1 . 12 To Critical Strikes . | . . . . Average Slot Usage (%) 93 | . 98 96 83 Engine 10 | . 14 10 8 Leg 28 | . 28 31 23 Device 8 | . 8 8 8 Storage 13 | . 19 11 11 Processor 7 | . . 11 10 Protection 1 | . . 2 1 Energy Gun 7 | . 12 1 9 Ballistic Gun 4 | . 8 2 . Ballistic Cannon 10 | . 5 16 8 Naked Turns . | . . . . Heaviest Build 22 | 12 15 22 20 Greatest Support 30 | 20 20 30 30 Greatest Overweight (x) 3 | 1 1 1 3 Average Overweight (x) . | . . . . Largest Inventory Capacity 8 | 8 8 8 8 Average Capacity 7 | 7 8 8 8 Most Carried 8 | 5 8 8 8 Average Carried 6 | 2 6 7 6 Final Capacity 8 | 8 8 8 8 Final Carried 8 | 3 8 7 . Class Distribution -------------------- 58% | Mutant 41% | Scavenger-Mutant Dominant Class ---------------- Mutant | -10/Materials Mutant | -9/Materials Scavenger-Mutant | -9/Storage Resources | -11 -10 -9 -9 ----------- Run | Yrd Mat Mat Sto Matter Collected 812 | 295 105 377 35 Remotely . | . . . . Salvage Created 1002 | 188 148 458 208 Parts 54 | 5 18 24 7 Haulers Intercepted 1 | . 1 . . Recyclers Shooed . | . . . . Parts Field Recycled . | . . . . Retrieved Matter . | . . . . Parts Self-Destructed . | . . . . Prevented . | . . . . Kills | -11 -10 -9 -9 ------- Run | Yrd Mat Mat Sto Combat Hostiles Destroyed 22 | . 5 11 6 Guns 5 | . 5 . . Cannons 16 | . . 10 6 Classes Destroyed 8 | 3 4 1 . Worker 2 | 2 . . . Tunneler 3 | 3 . . . Hauler 1 | . 1 . . Recycler 3 | 1 . 2 . Watcher 2 | . 1 1 . Swarmer 8 | . 4 4 . Grunt 10 | . 1 4 5 Sentry 4 | . . 3 1 Best Kill Streak 8 | 4 3 8 3 Combat Bots Only 6 | . 3 6 3 Max Kills in Single Turn 1 | 1 1 1 1 Gunslinging . | . . . . Exploded . | . . . . Melee . | . . . . Uniques/NPCs Destroyed . | . . . . Combat | -11 -10 -9 -9 -------- Run | Yrd Mat Mat Sto Hostile Shots Fired 235 | . 37 52 146 Missed 65 | . 11 9 45 Damage Taken 1886 | . 295 371 1220 Core 437 | . 29 44 364 Absorbed by Shields . | . . . . Ignored by Resistances 568 | . 91 116 361 Core Remaining (%) 94 | 100 88 . . Volleys Fired 79 | 15 17 19 28 Largest 2 | 2 2 2 2 Hottest 106 | 70 85 95 106 Shots Fired 145 | 30 33 38 44 Gun 85 | 30 25 6 24 Cannon 60 | . 8 32 20 Launcher . | . . . . Special . | . . . . Kinetic 95 | 15 17 37 26 Thermal 50 | 15 16 1 18 Explosive . | . . . . Electromagnetic . | . . . . Robot Hit Streak 29 | 14 4 22 29 Robot Miss Streak 3 | 1 3 1 2 Penetration Max . | . . . . Secondary Targets . | . . . . Shots Hit Robots 112 | 22 16 33 41 Core Hits 44 | 8 9 16 11 Critical Kills . | . . . . Critical Parts Destroyed . | . . . . Critical Strikes 9 | 3 1 1 4 Burn 6 | 3 . . 3 Blast 3 | . 1 1 1 Melee Attacks . | . . . . Impact . | . . . . Slashing . | . . . . Piercing . | . . . . Sneak Attacks . | . . . . Combat Hostiles . | . . . . Follow-up Attacks . | . . . . Damage Inflicted 1804 | 229 238 625 712 Guns 755 | 229 165 59 302 Cannons 1049 | . 73 566 410 Explosions . | . . . . Melee . | . . . . Ramming . | . . . . Kinetic 1281 | 76 125 625 455 Thermal 523 | 153 113 . 257 Explosive . | . . . . Electromagnetic . | . . . . Impact . | . . . . Slashing . | . . . . Piercing . | . . . . Highest Corruption 5 | . . . 5 Average Corruption 4 | . . . 4 Corruption Purged . | . . . . Corruption Blocked . | . . . . Effects 1 | . . . 1 Matter Fused 1 | . . . 1 Overload Shots . | . . . . Overflow Damage 1 | . . 1 . Projectiles 1 | . . 1 . Explosions . | . . . . Melee . | . . . . Knockbacks 16 | . 1 10 5 Impact . | . . . . Kinetic 11 | . 1 6 4 Secondary 5 | . . 4 1 Self-Inflicted Damage . | . . . . Shots . | . . . . Rammed . | . . . . Targets Rammed . | . . . . Kicked . | . . . . Crushed . | . . . . Highest Temperature 295 | 160 72 295 192 Average Temperature 55 | 60 26 53 75 Received Heat Transfer 699 | . 18 168 513 Siege Activations . | . . . . Robots Corrupted . | . . . . Combat Hostiles . | . . . . Parts Fried . | . . . . Impact Corruptions 1 | . . 1 . Robots Melted . | . . . . Combat Hostiles . | . . . . Parts Melted 2 | 1 . . 1 Heat Transferred 1850 | 666 333 . 851 Parts Sabotaged . | . . . . Parts Stolen . | . . . . Parts Stripped . | . . . . Power Chain Reactions . | . . . . Alert | -11 -10 -9 -9 ------- Run | Yrd Mat Mat Sto Peak Influence 434 | 30 190 434 321 Initial 156 | . 16 68 156 Average 167 | 12 94 246 224 Maximum Alert Level 2 | . . 2 1 Low Security (%) 66 | 100 100 40 47 Level 1 27 | . . 42 52 Level 2 6 | . . 16 . Level 3 . | . . . . Level 4 . | . . . . Level 5 . | . . . . High Security . | . . . . Max Security . | . . . . Squads Dispatched 4 | . 1 1 2 Investigation 1 | . 1 . . Extermination . | . . . . Reinforcement 1 | . . 1 . Assault . | . . . . Garrison 2 | . . . 2 Intercept . | . . . . Searches Triggered . | . . . . Construction Impeded . | . . . . Haulers Reinforced . | . . . . Active Scanning Responses . | . . . . Cargo Convoy Interrupts . | . . . . Stealth | -11 -10 -9 -9 --------- Run | Yrd Mat Mat Sto Distress Signals 5 | . 2 . 3 Communications Jammed . | . . . . Distress Signals . | . . . . Times Spotted 42 | . 13 15 14 Peak Tracking Total 8 | . 5 6 8 Tactical Retreats 2 | . . 1 1 Traps | -11 -10 -9 -9 ------- Run | Yrd Mat Mat Sto Traps Triggered 7 | . 1 6 . Indirectly . | . . . . Trap Hack Attempts . | . . . . Triggered . | . . . . Disarmed . | . . . . Reprogrammed 6 | . 6 . . Reused 2 | . 2 . . Traps Extracted . | . . . . Installed . | . . . . Triggered 2 | . 2 . . Machines | -11 -10 -9 -9 ---------- Run | Yrd Mat Mat Sto Machines Disabled 1 | . 1 . . Max in Single Turn 1 | . 1 . . Machines Repaired . | . . . . Machines Dismantled . | . . . . Machines Sabotaged . | . . . . Overloaded Fab Kills . | . . . . Hacking | -11 -10 -9 -9 --------- Run | Yrd Mat Mat Sto Machines Accessed 7 | . 4 1 2 Terminals 5 | . 4 . 1 Fabricators . | . . . . Repair Stations . | . . . . Recycling Units 1 | . . . 1 Scanalyzers 1 | . . 1 . Garrison Access . | . . . . Total Hacks 15 | . 5 7 3 Successful 11 | . 2 6 3 Failed 4 | . 3 1 . Catastrophic 1 | . 1 . . Database Lockouts . | . . . . Manual . | . . . . Terminals 7 | . 5 . 2 Fabricators . | . . . . Repair Stations . | . . . . Recycling Units 1 | . . . 1 Scanalyzers 7 | . . 7 . Garrison Access . | . . . . Terminal Hacks 4 | . 2 . 2 Part Schematic 2 | . . . 2 Reprogram Traps 1 | . 1 . . Zone Layout 1 | . 1 . . Fabricator Hacks . | . . . . Repair Station Hacks . | . . . . Recycling Unit Hacks 1 | . . . 1 Report Inventory 1 | . . . 1 Scanalyzer 6 | . . 6 . Insert Component 3 | . . 3 . Analyze 3 | . . 3 . Garrison Access Hacks . | . . . . Unauthorized Hacks . | . . . . Terminals . | . . . . Fabricators . | . . . . Repair Stations . | . . . . Recycling Units . | . . . . Scanalyzers . | . . . . Garrison Access . | . . . . Data Cores Recovered . | . . . . Used . | . . . . Hacking Detections 3 | . 1 1 1 Full Trace Events . | . . . . Feedback Events . | . . . . Feedback Blocked . | . . . . Robot Schematics Acquired . | . . . . Robots Built . | . . . . Authchips . | . . . . Time . | . . . . Total Robot Build Rating . | . . . . Part Schematics Acquired 5 | . . 3 2 Parts Built . | . . . . Authchips . | . . . . Time . | . . . . Total Part Build Rating . | . . . . Parts Repaired . | . . . . Time . | . . . . Parts Recycled . | . . . . Recycled Matter . | . . . . Retrieved Matter . | . . . . Retrieved Components . | . . . . Parts Scanalyzed 3 | . . 3 . Part Schematics Acquired 3 | . . 3 . Parts Damaged . | . . . . Bothacking | -11 -10 -9 -9 ------------ Run | Yrd Mat Mat Sto Used RIF Installer . | . . . . Robots Hacked . | . . . . Non-combat . | . . . . Combat . | . . . . Robot Hacks Applied . | . . . . Relay Couplers Released . | . . . . Fabnet Peak Effective % . | . . . . Robots Rewired . | . . . . Allies Hacked . | . . . . Hacks Repelled . | . . . . Allies | -11 -10 -9 -9 -------- Run | Yrd Mat Mat Sto Total Allies . | . . . . Largest Group . | . . . . Highest-Rated Group . | . . . . Highest-Rated Ally . | . . . . Total Orders . | . . . . Ally Attacks . | . . . . Total Damage . | . . . . Kills . | . . . . Allies Corrupted . | . . . . Allies Melted . | . . . . Intel | -11 -10 -9 -9 ------- Run | Yrd Mat Mat Sto Robot Analysis Total . | . . . . Derelict Logs Recovered . | . . . . Drone Launches . | . . . . Drone Recoveries . | . . . . Exploration | -11 -10 -9 -9 ------------- Run | Yrd Mat Mat Sto Turns Passed 1072 | 161 272 385 254 Spaces Moved 555 | 66 168 201 120 Core 20 | 10 . . 10 Treads . | . . . . Legs 535 | 56 168 201 110 Wheels . | . . . . Hover . | . . . . Flight . | . . . . Fastest Speed 50 | 50 120 120 120 Average Speed 126 | 156 120 120 127 Slowest Speed 200 | 190 190 190 200 Overloaded Moves . | . . . . Propulsion Burnouts . | . . . . Robots Hopped . | . . . . Cave-ins Triggered . | . . . . Exploration Rate (%) 23 | 5 37 26 27 Regions Visited 3 Branch Regions 1 Pre-discovered Areas . | . . . . Known Exits Taken 1 | . . 1 . Unknown Exits Taken 2 | 1 1 . . Scrap Searched . | . . . . Spaces Dug . | . . . . Terrain Destroyed 1 | . . 1 . Melee . | . . . . Projectile 1 | . . 1 . AOE . | . . . . Terrain Rammed . | . . . . Walls Destroyed . | . . . . Machines Disabled . | . . . . Actions | -11 -10 -9 -9 --------- Run | Yrd Mat Mat Sto Total 780 | 96 204 304 176 Wait 48 | . 1 31 16 Move 552 | 65 167 200 120 Hop . | . . . . Pick Up 34 | 9 9 14 2 Fast Attach 9 | 1 . 8 . Attach 24 | 6 2 7 9 Detach . | . . . . Swap 18 | . 5 12 1 Drop 16 | . 3 13 . Fire 79 | 15 17 19 28 Melee . | . . . . Ram . | . . . . Kick . | . . . . Crush . | . . . . Escape Stasis . | . . . . Rewire . | . . . . Trap . | . . . . Miscellaneous . | . . . . Route ------- -11/Scrapyard -10/Materials (discovered 3 exits: *Mat / [*Min x2]) -9/Materials (discovered 2 exits: *Min / *Sto) -9/Storage History --------- Turn | Location | Event 29 | -11/Scrapyard | Discovered new exit (range 14) 162 | -11/Scrapyard | Entered Materials 230 | -10/Materials | Discovered new exit (range 9) 318 | -10/Materials | Build established: Mutant 347 | -10/Materials | Discovered new exit (range 15) 406 | -10/Materials | Discovered new exit (range 10) 434 | -10/Materials | Entered another Materials area 434 | -9/Materials | Evolved 2 slots: Propulsion x1, Utility x1 657 | -9/Materials | Discovered new exit (range 11) 667 | -9/Materials | Identified exit to Mines 675 | -9/Materials | Discovered new exit (range 15) 816 | -9/Materials | Identified exit to Storage 819 | -9/Materials | Entered Storage 915 | -9/Storage | Build established: Scavenger-Mutant 943 | -9/Storage | Garrison activated, responded to threat 1040 | -9/Storage | Core integrity fell below 50% 1059 | -9/Storage | Core integrity fell below 20% 1073 | -9/Storage | Destroyed by G-34 Mercenary with Small Laser Last Messages --------------- Imp. Light Cannon destroyed. Particle Cannon severed. Lgt. Armor Plating severed. Critical hit (Burn: +37). R-06 Scavenger collects Particle Cannon. Aluminum Leg destroyed. R-06 Scavenger collects Lgt. Armor Plating. L-31 Rogue destroyed. Lgt. Nuclear Core destroyed. R-06 Scavenger collects Melee Analysis Suite. Knocked back. Assault Rifle destroyed. Acquired 4 matter. Signal Interpreter destroyed. System corrupted by crushing effect (+2). Sml. Matter Pod destroyed. System corrupted by crushing effect (+3). Beam Rifle destroyed. Transfer Shaft disabled. System corrupted: Matter fused (-8). Map ----- +----------------------------------------------------+ | | | | | | | | | | | ???????????????????????????????????? | | ???????????????????????????????????? | | ???????????????????????????????????? | | ???????????????????????????????????? | | ???????????????????????????????????? | | ???????????????????????????????????? | | ???????????????????????????????????? | | ???????????????????????????????????? | | ???????????????????????????????????? | | ???????????????????????????????????? | | ???????????????????????????????????? | | ???????????????????????????????????? | | ???????????????????????????????????? | | ?????#####?????????????????????????? | | ?????#"""#?????????????????????????? | | ???###"T"####??????????????????????? | | ???# #??"???????????????????? | | ?### """ #? ????????????????????? | | ?#"" """%#/###+#########+###????? | | ?#"" """%# ???? | | ?#"T Ygg @r %%% ???? | | ?#"" """ # r ???? | | ?#"" % "" ####w#########?????????? | | ?### """ #??# #?????????????????? | | ???# b #??# #?????????????????? | | ???## ########## #?????????????????? | | ????### # #?????????????????? | | ??????# """ # #################?? | | ??????# """ # % | | ?????## """ "% %! | | ?????#" # =% | | ?????#T ! """ # %################# | | ?????#" """ # #???????????????? | | ?????## """ # #???????????????? | | ??????# # #???????????????? | | ??????#+##"Y"### #???????????????? | | ??????# ##"""#?# #???????????????? | | ?????## ######## ####????????????? | | ?????# ^ ????????????? | | ?????# #???????????????? | | ?????# #???????????????? | | ?????# ########+##???????????????? | | ?????# #??????? ?????????????????? | | ?????# #???????"?????????????????? | | ?????# #?????????????????????????? | +----------------------------------------------------+ Best States ------------- Heat Dissipation 28 Energy Generation 14 Energy Capacity 265 Matter Stores 350 Matter Capacity 350 Sight Range 16 Robot Scan Range 14 Terrain Scan Density 10 Armor Coverage 150 Resistance: KI 20 Resistance: TH 20 Resistance: EX 20 Resistance: EM 20 Resistance: I 20 Resistance: S 20 Resistance: P 20 Evasion (%) 55 Offensive Hacking 10 Item Schematics ----------------- Sensor Array | -9/Materials | Scanalyzed Assault Rifle | -9/Materials | Scanalyzed Med. Laser | -9/Materials | Scanalyzed Disposable Heat Sink | -9/Storage | Hacked Mace | -9/Storage | Hacked Robot Schematics ------------------ None Fabricated ------------ Nothing Alien Tech Used ----------------- None Achievements -------------- None Challenges ------------ None Game ------ Seed WeightDeepProcessor Manual? 0 Play Time 00:24:44 Cumulative 15.3 hours Start 2024.06.13 @ 22:32:45 End 2024.07.30 @ 23:33:49 Sessions 5 Manual Loads 0 Difficulty Adventurer Special Mode None Game No. 19 Rogue 0 Adventurer 19 Explorer 0 Win Type - Total 0 Types 0/0/0/0/0/0/0/0/0 Lore% 11 Gallery% 20 Achievement% 15 Wizard Run 0 Options --------- Layout 2 ASCII 0 Keyboard 0 Movement Mouse Keybinds 0 Fullscreen 1 Font 24/Smallcaps Map View 25x22 Zoom Use 96% Tactical HUD 0 Map Filters NONE Filters NONE Steam 1 RUN: d3bcd92d-b3bd-40da-82f4-26b534ad1e3d